[Event "ChessKid Cup Div-II 2023"]
[Site "Online"]
[Date "2023.05.24"]
[Round "53.1"]
[White "Mamedyarov, Shakhriyar"]
[Black "Le, Quang Liem"]
[Result "1-0"]
[ECO "A34"]
[WhiteElo "2738"]
[BlackElo "2728"]
[Annotator "TA"]
[PlyCount "77"]
[EventDate "2023.05.21"]
[EventType "k.o."]
[EventCountry "NET"]
[SourceTitle "playchess.com"]
[Source "ChessBase"]
[SourceQuality "1"]
[TimeControl "900+3"]

{[%evp 18,77,-32,-45,-18,-42,20,-20,0,-60,-31,-45,-35,-83,-70,-80,-79,-106,-106,-132,-62,-72,-44,-42,-44,-53,-46,-55,-10,-10,0,0,0,0,0,0,47,62,95,95,171,166,167,102,402,408,417,389,412,401,711,691,877,870,856,820,948,943,29983,29984,29984,29985]} 1. c4 {[%emt 0:00:03]} c5 {[%emt 0:00:05]} 2. Nc3 {[%emt 0:00:08]} Nc6 {[%emt 0:00:07]} 3. Nf3 {[%emt 0:00:01]} Nf6 {[%emt 0:00:01]} 4. g3 {[%emt 0:00:07]} d5 {[%emt 0:00:18]} 5. cxd5 {[%emt 0:00:02]} Nxd5 {[%emt 0:00:00]} 6. Bg2 {[%emt 0:00:00]} Nc7 {[%emt 0:00:11]} 7. d3 {[%emt 0:00:31]} e5 {[%emt 0:00:04]} 8. O-O {[%emt 0:00:02]} Be7 {[%emt 0:00:02]} 9. b3 {[%emt 0:00:09]} O-O {[%emt 0:00:04]} 10. Bb2 {[%emt 0:00:00]} b6 {[%emt 0:00:55] A34: Symmetrical English: 2 Nc3, lines with ...d5.} 11. a3 {[%emt 0:00:46][%cal Ob3b4] [#]} Be6 $146 {[%emt 0:00:15]} (11... Rb8 $15) ({Predecessor:} 11... Re8 12. Qc2 Rb8 13. e3 Bb7 14. Rfd1 Ne6 15. Ne4 Bd6 16. Rd2 Bc7 17. Rad1 Qe7 18. h4 {1-0 Karell,L (1961)-Taborsky,R (2220) Washington op 2015 (4)}) 12. e3 {[%emt 0:00:07][%cal Ob3b4]} Qd7 {[%emt 0:01:06] The position is equal.} (12... Rc8 $5) 13. Qc2 {[%emt 0:00:02]} (13. b4 $11) 13... Rfd8 {[%emt 0:00:09]} 14. Rfd1 {[%emt 0:00:03]} Rac8 {[%emt 0:00:01]} 15. Rac1 {[%emt 0:00:32]} (15. Ne4 $15 {was preferrable.}) 15... f6 $17 {[%emt 0:00:23] Strongly threatening ...Na5.} 16. Nd2 {[%emt 0:00:39]} Bf8 {[%emt 0:00:05]} 17. Nc4 {[%emt 0:01:53]} b5 {[%emt 0:00:33]} 18. Nd2 {[%emt 0:00:03]} a6 {[%emt 0:00:16]} ({Black should play} 18... Na5 $1 $17 19. d4 cxd4 20. exd4 exd4) 19. Nce4 $15 {[%emt 0:02:22]} Nd5 {[%emt 0:00:03]} 20. Qb1 {[%emt 0:00:37]} (20. Nxc5 $2 Bxc5 21. Bxd5 (21. Qxc5 $2 Na5 $19) 21... Qxd5 $19) 20... Na5 {[%emt 0:00:03]} 21. Ba1 {[%emt 0:00:25]} Kh8 {[%emt 0:00:30]} 22. Rc2 {[%emt 0:00:17]} Nb6 {[%emt 0:01:41]} 23. b4 {[%emt 0:00:32]} cxb4 {[%emt 0:00:26]} 24. Rxc8 {[%emt 0:00:03]} Rxc8 {[%emt 0:01:35]} 25. axb4 {[%emt 0:00:03][%cal Ba3b4,Bb4c5][%mdl 32]} Nc6 {[%emt 0:00:00]} 26. Nc5 {[%emt 0:00:24]} Bxc5 {[%emt 0:00:03]} (26... Qf7 $11 {is more appropriate.}) 27. bxc5 $14 {[%emt 0:00:00]} Na4 {[%emt 0:00:00] [#]} 28. Ne4 {[%emt 0:00:22]} b4 {[%emt 0:00:04] [#]} (28... Na5 $16) 29. d4 $1 $18 {[%emt 0:00:22]} exd4 {[%emt 0:00:04]} 30. Bxd4 {[%emt 0:00:03]} (30. exd4 $18 Bd5 31. Nd6 Bxg2 32. Kxg2 (32. Nxc8 Qh3 $11)) 30... Qc7 $2 {[%emt 0:01:33][%mdl 8192] [#] This move loses the game for Black.} (30... Nxd4 $16 {keeps fighting.} 31. Rxd4 Qc7) 31. Nxf6 $1 {[%emt 0:00:36][%mdl 576] Demolition} gxf6 {[%emt 0:00:18]} 32. Bxf6+ {[%emt 0:00:02]} Kg8 {[%emt 0:00:01]} 33. Rd6 {[%emt 0:00:10]} Qf7 {[%emt 0:00:22]} (33... Nd8 $142 34. Bxd8 (34. Qxb4 Qxd6 35. cxd6 Rc1+ 36. Bf1 Bh3 $14) 34... Qf7) 34. Bxc6 {[%emt 0:00:32][%cal Bg2c6,Bc6e4,Be4d5][%mdl 32] This pair of bishops is nice.} Nc3 {[%emt 0:03:20]} 35. Bxc3 {[%emt 0:00:44]} bxc3 {[%emt 0:00:01]} 36. Qd3 {[%emt 0:00:09][%csl LRa6,LRc3]} Qf5 {[%emt 0:01:48]} 37. Be4 {[%emt 0:00:18][%mdl 64] Skewer} (37. Qxa6 $2 {loses.} c2 38. Qf1 Qxc5 39. Rxe6 c1=R $19) ({Weaker is} 37. Qxc3 Rxc6 38. Rxc6 Qb1+ 39. Kg2 Bd5+ 40. f3 (40. Kh3 $2 Qf5+ 41. g4 Qf3+ 42. Kh4 Qxf2+ 43. Kg5 Bxc6 $19) 40... Qa2+ 41. Kg1 Bxf3 42. Rc8+ Kf7 $11) 37... Qe5 {[%emt 0:00:01] [#]} 38. Rxe6 $1 {[%emt 0:00:07][%mdl 64] Remove Defender} Qxe6 {[%emt 0:00:09]} 39. Bd5 {[%emt 0:00:01] Weighted Error Value: White=0.16 (very precise) /Black=0.65} 1-0

[Event "ChessKid Cup Div-II 2023"]
[Site "Online"]
[Date "2023.05.24"]
[Round "53.1"]
[White "Andreikin, Dmitry"]
[Black "Le, Tuan Minh"]
[Result "1-0"]
[ECO "D31"]
[WhiteElo "2729"]
[BlackElo "2542"]
[Annotator "TA"]
[PlyCount "37"]
[EventDate "2023.05.21"]
[EventType "k.o."]
[EventCountry "NET"]
[SourceTitle "playchess.com"]
[Source "ChessBase"]
[SourceQuality "1"]
[TimeControl "900+3"]

{[%evp 9,37,24,30,32,20,33,21,30,47,51,184,171,187,193,197,191,193,177,702,701,690,708,705,701,629,637,1870,456,29994,29995]} 1. d4 {[%emt 0:00:06]} d5 {[%emt 0:00:15]} 2. c4 {[%emt 0:00:03]} e6 {[%emt 0:00:04]} 3. Nc3 {[%emt 0:00:05]} a6 {[%emt 0:00:02]} 4. cxd5 {[%emt 0:00:05]} exd5 {[%emt 0:00:02]} 5. Nf3 {[%emt 0:00:01]} c6 {[%emt 0:00:02]} 6. e4 {[%emt 0:01:09] D31: Queen's Gambit Declined: Semi-Slav without ...Nf6 (+ Marshall Gambit and Noteboom) and Exchange Variation lines without ...Nf6.} (6. Bf4 {simplifies} Nf6 7. e3 Bd6 8. Bxd6 Qxd6 9. Bd3) 6... dxe4 {[%emt 0:00:23]} 7. Ng5 {[%emt 0:00:02][%cal Og5f7]} Be7 {[%emt 0:01:10] [#]} 8. Bc4 $1 {[%emt 0:00:07] The position is equal.} Bxg5 {[%emt 0:01:52]} (8... Nh6 9. Ngxe4) 9. Qh5 {[%emt 0:00:03][%csl Gc4][%cal Rh5f7] [#]} Qe7 $146 {[%emt 0:06:49]} ({Predecessor:} 9... Be7 10. Qxf7+ Kd7 11. Be6+ Kc7 12. Bf4+ Kb6 13. Bxc8 Qxc8 14. d5 c5 15. a4 e3 16. O-O Nd7 17. Qe6+ Ka5 18. Bxe3 c4 19. d6 Bxd6 20. Qxd6 Qc6 21. Qd2 {1-0 Predke,A (2692)-Indjic,A (2613) Dubai op 22nd 2022 (5)}) 10. Bxg5 $40 {[%emt 0:00:08][%mdl 128] White goes for the king.} ({Stronger than} 10. Qxg5 Nf6 $11) 10... Nf6 {[%emt 0:00:00]} 11. Bxf6 {[%emt 0:00:56]} gxf6 {[%emt 0:00:14] [#]} 12. O-O-O $1 {[%emt 0:00:03][%cal Oc3e4] Nxe4! would be deadly.} f5 {[%emt 0:00:17] [#]} 13. Rhe1 $1 {[%emt 0:00:20] And now f3 would win.} O-O $2 {[%emt 0:00:46] [#]} (13... Nd7) 14. g4 $1 {[%emt 0:01:10][%mdl 512]} Qd6 {[%emt 0:02:42]} 15. gxf5 {[%emt 0:01:25]} Qf4+ {[%emt 0:00:02]} 16. Re3 {[%emt 0:00:01]} Kh8 {[%emt 0:00:10]} 17. Rg1 {[%emt 0:00:22] White threatens Ne2 and mate.} ({Weaker is} 17. Bxf7 Bxf5 18. Ne2 Qg4 $16) 17... Nd7 {[%emt 0:00:28]} 18. Ne2 {[%emt 0:00:24]} (18. Rg5 $142 Ne5 19. dxe5) 18... Qd6 {[%emt 0:00:24] [#]} (18... Nf6 $18) 19. Be6 $1 {[%emt 0:00:50][%mdl 512] Black did not feel at home in the position after the opening. Excellently played by Andreikin!   Weighted Error Value: White=0.33/Black=0.62} 1-0

[Event "ChessKid Cup Div-II 2023"]
[Site "Online"]
[Date "2023.05.24"]
[Round "53.2"]
[White "Le, Quang Liem"]
[Black "Mamedyarov, Shakhriyar"]
[Result "1-0"]
[ECO "A17"]
[WhiteElo "2728"]
[BlackElo "2738"]
[Annotator "TA"]
[PlyCount "58"]
[EventDate "2023.05.21"]
[EventType "k.o."]
[EventCountry "NET"]
[SourceTitle "playchess.com"]
[Source "ChessBase"]
[SourceQuality "1"]
[TimeControl "900+3"]

{[%evp 9,58,1,12,0,10,17,12,-1,28,28,13,8,37,47,53,-10,-27,-6,-25,-8,-9,-15,-20,-12,404,411,399,390,772,762,5573,5565,2424,582,577,574,566,565,559,552,550,533,535,525,752,743,838,831,879,878,812]} 1. Nf3 {[%emt 0:00:06]} d5 {[%emt 0:00:11]} 2. e3 {[%emt 0:00:01]} Nf6 {[%emt 0:00:04]} 3. c4 {[%emt 0:00:01]} e6 {[%emt 0:00:04]} 4. Nc3 {[%emt 0:00:03]} Bd6 {[%emt 0:00:02]} 5. b3 {[%emt 0:00:11]} O-O {[%emt 0:00:07]} 6. Bb2 {[%emt 0:00:02] A17: English Opening: 1...Nf6 with ...Bb4.} b6 {[%emt 0:00:09]} 7. cxd5 {[%emt 0:00:33]} exd5 {[%emt 0:00:02]} 8. Rc1 {[%emt 0:00:22] The position is equal.} a6 {[%emt 0:00:16]} 9. g3 {[%emt 0:00:09]} Bb7 {[%emt 0:00:22][%cal Od5d4]} 10. Bg2 {[%emt 0:00:12]} d4 {[%emt 0:00:37]} 11. Ne2 {[%emt 0:00:02]} dxe3 {[%emt 0:00:20] [#]} 12. fxe3 $146 {[%emt 0:00:09]} ({White should play} 12. dxe3 $14 Nbd7 13. O-O) ({Predecessor:} 12. dxe3 Bb4+ 13. Bc3 Qxd1+ 14. Rxd1 Bxc3+ 15. Nxc3 Nbd7 16. O-O Rfd8 17. Nd4 Bxg2 18. Kxg2 {1-0 Narayanan,S (2559)-Grandelius,N (2656) Titled Tuesday intern op 12th Apr Early blitz 2022 (8)}) 12... c5 $11 {[%emt 0:01:16]} 13. O-O {[%emt 0:00:03] [#] Threatens to win with Bxf6.} Nbd7 {[%emt 0:00:05]} 14. Rc4 {[%emt 0:00:11]} Qe7 {[%emt 0:00:25]} 15. Rh4 {[%emt 0:01:22]} Rad8 {[%emt 0:00:04]} 16. Nf4 {[%emt 0:01:20]} Ne5 $2 {[%emt 0:01:59][%mdl 8192] This costs Black the game.} (16... Be4 $11) 17. Nxe5 $18 {[%emt 0:00:41]} Bxg2 {[%emt 0:00:02]} 18. Ng4 {[%emt 0:00:03]} (18. Nxg2 Bxe5 19. Qb1 Rfe8 $15) 18... Bxf4 $2 {[%emt 0:01:30]} (18... Bxf1 $2 19. Nxf6+ $18) (18... Nxg4 19. Rxg4 (19. Kxg2 Nxe3+ {[%mdl 64] Remove Defender} 20. dxe3 Bxf4 $17) (19. Nxg2 f5 $15) 19... Be5) 19. Nxf6+ {[%emt 0:00:14] White is clearly winning.} ({Stronger than} 19. Kxg2 Nxg4 20. Rxg4 Be5 21. Bxe5 Qxe5 $15) 19... gxf6 {[%emt 0:00:01]} 20. Rfxf4 {[%emt 0:00:25] [#] White wants to mate with Rfg4+.} Qxe3+ {[%emt 0:00:01]} 21. dxe3 {[%emt 0:00:01]} (21. Kxg2 $142 {White threatens Rhg4+ and mate.} Rxd2+ 22. Kh3) 21... Rxd1+ {[%emt 0:00:01]} 22. Kxg2 {[%emt 0:00:01] Threatening mate with Rhg4+.} Rd2+ {[%emt 0:00:00]} 23. Rf2 {[%emt 0:00:01] Intending Rg4+ and mate.} Rfd8 {[%emt 0:00:02]} 24. Rhf4 {[%emt 0:00:08]} Rxf2+ {[%emt 0:00:02]} 25. Rxf2 {[%emt 0:00:00]} ({Inferior is} 25. Kxf2 Rd2+ 26. Kg1 Rxb2 27. Rxf6 Rxa2 28. Rxb6 Kg7 $11) 25... Rd3 {[%emt 0:00:01]} 26. Kf3 {[%emt 0:00:02]} b5 {[%emt 0:00:02]} 27. Ke2 {[%emt 0:00:06]} Rd5 {[%emt 0:00:01]} 28. Rxf6 {[%emt 0:00:03]} c4 {[%emt 0:00:02]} 29. Rxa6 {[%emt 0:00:03]} h5 {[%emt 0:00:02] Weighted Error Value: White=0.27 (precise) /Black=0.47} 1-0

[Event "ChessKid Cup Div-II 2023"]
[Site "Online"]
[Date "2023.05.24"]
[Round "53.2"]
[White "Le, Tuan Minh"]
[Black "Andreikin, Dmitry"]
[Result "1/2-1/2"]
[ECO "D37"]
[WhiteElo "2542"]
[BlackElo "2729"]
[Annotator "TA"]
[PlyCount "73"]
[EventDate "2023.05.21"]
[EventType "k.o."]
[EventCountry "NET"]
[SourceTitle "playchess.com"]
[Source "ChessBase"]
[SourceQuality "1"]
[TimeControl "900+3"]

{[%evp 13,73,5,7,12,6,7,15,8,14,8,8,13,18,10,10,0,16,0,0,0,12,0,0,0,0,0,0,0,0,0,0,0,0,0,0,0,139,7,11,5,45,55,55,0,500,0,0,0,0,0,0,0,0,0,0,-8,-8,-8,-8,-8,-8,-4798]} 1. d4 {[%emt 0:00:03]} Nf6 {[%emt 0:00:12]} 2. Nf3 {[%emt 0:00:02]} d5 {[%emt 0:00:13]} 3. c4 {[%emt 0:00:02]} e6 {[%emt 0:00:29]} 4. Nc3 {[%emt 0:00:03]} Be7 {[%emt 0:00:12]} 5. Bf4 {[%emt 0:00:12]} O-O {[%emt 0:00:03]} 6. e3 {[%emt 0:00:01]} Nbd7 {[%emt 0:00:01]} 7. c5 {[%emt 0:00:05]} Nh5 {[%emt 0:00:18]} 8. Bd3 {[%emt 0:00:05] D37: Queen's Gambit Declined: 5 Bf4.} Nxf4 {[%emt 0:00:08]} 9. exf4 {[%emt 0:00:01]} c6 {[%emt 0:00:01]} 10. b4 {[%emt 0:00:30]} b6 {[%emt 0:00:05]} 11. O-O {[%emt 0:00:09]} a5 {[%emt 0:00:01]} 12. a3 {[%emt 0:00:38]} Qc7 {[%emt 0:00:21]} 13. g3 {[%emt 0:00:16]} Ba6 {[%emt 0:00:03]} 14. Re1 {[%emt 0:00:25]} Bf6 {[%emt 0:00:48] [#]} 15. Bxa6 $5 $146 {[%emt 0:02:33][%mdl 8] New and interesting.} (15. Ne5 $5 {[%cal Re5d7]}) ({Predecessor:} 15. Ne5 Bxd3 16. Qxd3 Bxe5 17. fxe5 Ra7 18. Ne2 Rfa8 19. Rab1 axb4 20. axb4 Ra3 21. Rb3 Rxb3 22. Qxb3 {½-½ Nakamura,H (2736)-Radjabov,T (2765) Skilling op Prelim rapid 2020 (12)}) 15... Rxa6 {[%emt 0:00:02]} 16. Qd3 {[%emt 0:00:00]} Ra7 {[%emt 0:00:58]} 17. h4 {[%emt 0:00:27]} Rfa8 {[%emt 0:00:12] White must now prevent ...axb4.} 18. Rac1 $1 {[%emt 0:01:56]} axb4 {[%emt 0:00:03]} 19. axb4 {[%emt 0:00:00]} Ra3 {[%emt 0:00:25]} 20. Kg2 {[%emt 0:00:26]} bxc5 {[%emt 0:00:30]} 21. bxc5 {[%emt 0:00:02]} Qa5 {[%emt 0:00:03][%cal Od7c5]} 22. Re3 {[%emt 0:00:49]} Rb8 {[%emt 0:01:40]} 23. f5 {[%emt 0:04:27]} Nf8 {[%emt 0:00:18]} 24. g4 {[%emt 0:00:16]} exf5 {[%emt 0:00:46]} (24... Qa6 $11) 25. g5 {[%emt 0:01:07]} ({White must play} 25. Qxf5 $16 {g5 would be deadly.} Ng6 26. h5 Nh4+ 27. Nxh4 {[%mdl 64] Remove Defender} Bxh4 28. Rf3) 25... f4 $11 {[%emt 0:01:34]} 26. Ree1 {[%emt 0:00:13]} Rbb3 {[%emt 0:01:30][%cal Rb3c3]} (26... Bd8 $5 {[%cal Ra5c7]}) 27. gxf6 {[%emt 0:01:01][%cal Oe1e8] aiming for Re8!} Rxc3 {[%emt 0:00:04] [#]} 28. Qd2 {[%emt 0:00:11]} (28. Rxc3 $1 $14 Rxc3 29. Qd2) 28... Ne6 $2 {[%emt 0:00:55][%mdl 8192] [#]} ({Don't do} 28... Rxf3 29. Qxa5 Rxa5 30. Kxf3 $16) ({Don't take} 28... gxf6 29. Rxc3 Rxc3 30. Rb1 $16) (28... Rxc1 $11 {and Black is okay.} 29. Qxc1 gxf6) 29. Rb1 $1 {[%emt 0:00:01]} gxf6 {[%emt 0:00:21] Threatens to win with ...Qa8. The position is equal.} (29... Rxf3 30. Qxa5 Rxa5 31. Rb8+ (31. Kxf3 Ra8 $16) 31... Nf8 32. Ree8 gxf6 33. Rxf8+ Kg7 34. Rg8+ Kh6 35. Kxf3 $18) 30. Rb8+ {[%emt 0:00:12]} Kg7 {[%emt 0:00:03]} 31. Rxe6 $1 {[%emt 0:00:05][%cal Od2f4] White threatens Qxf4! and mate.} Rxf3 {[%emt 0:01:28][%mdl 64] Discovered Attack} (31... Qc7 $5 32. Ree8 $8 Rxf3 $11) 32. Qxa5 {[%emt 0:00:05]} Rxa5 {[%emt 0:00:00]} 33. Rxc6 {[%emt 0:00:02] KRR-KRR} Rd3 {[%emt 0:00:04] Hoping for ...Ra2.} 34. Rbb6 {[%emt 0:00:07]} Ra2 {[%emt 0:00:41]} 35. Rxf6 {[%emt 0:00:11]} Rg3+ {[%emt 0:00:02]} 36. Kf1 {[%emt 0:00:01]} Rf3 {[%emt 0:00:01]} 37. h5 $2 {[%emt 0:00:05][%mdl 40960] Black used his chance. An interesting game.   Weighted Error Value: White=0.38/Black=0.26 (precise) . An unexpected result.} (37. Rf5 $11) 1/2-1/2

[Event "ChessKid Cup Div-II 2023"]
[Site "Online"]
[Date "2023.05.24"]
[Round "53.3"]
[White "Le, Quang Liem"]
[Black "Mamedyarov, Shakhriyar"]
[Result "1/2-1/2"]
[ECO "A17"]
[WhiteElo "2728"]
[BlackElo "2738"]
[Annotator "TA"]
[PlyCount "84"]
[EventDate "2023.05.21"]
[EventType "k.o."]
[EventCountry "NET"]
[SourceTitle "playchess.com"]
[Source "ChessBase"]
[SourceQuality "1"]
[TimeControl "900+3"]

{[%evp 9,84,0,0,0,11,9,11,0,18,11,15,-9,0,0,20,17,25,18,20,14,16,7,43,0,16,-116,-114,-102,-110,-106,-104,-165,-175,-162,-80,-211,-139,-204,-149,-136,-52,-241,-72,-67,-87,-81,-82,-66,-71,-85,-25,-29,-27,-14,0,0,0,0,0,0,0,-337,-334,-1323,-1282,-29984,-29985,-29983,-29940,-12833,-7330,-5361,0,-600,0,-1613,0]} 1. Nf3 {[%emt 0:00:06]} d5 {[%emt 0:03:12]} 2. e3 {[%emt 0:00:05]} Nf6 {[%emt 0:00:05]} 3. c4 {[%emt 0:00:03]} e6 {[%emt 0:00:03]} 4. Nc3 {[%emt 0:00:04]} Bd6 {[%emt 0:00:04]} 5. b3 {[%emt 0:00:05]} O-O {[%emt 0:00:04]} 6. Bb2 {[%emt 0:00:04] A17: English Opening: 1...Nf6 with ...Bb4.} b6 {[%emt 0:00:06]} 7. cxd5 {[%emt 0:00:04]} exd5 {[%emt 0:00:04]} 8. Rc1 {[%emt 0:00:04] The position is equal.} a6 {[%emt 0:00:05] Repels Nb5} 9. g3 {[%emt 0:00:04]} Bb7 {[%emt 0:00:05][%cal Od5d4]} 10. Ne2 {[%emt 0:00:10]} c5 {[%emt 0:00:13]} 11. Bg2 {[%emt 0:00:04]} Nbd7 {[%emt 0:01:04][%cal Bb8d7,Bd7f6,Bf6g4,Bg4e3,Be3d1][%mdl 32]} 12. d4 {[%emt 0:00:20]} Rc8 {[%emt 0:00:06]} 13. dxc5 {[%emt 0:00:04]} bxc5 {[%emt 0:00:03]} 14. O-O {[%emt 0:00:04]} Re8 {[%emt 0:00:09] [#]} 15. Qd3 $146 {[%emt 0:00:38]} ({Predecessor:} 15. Rc2 Ne4 16. Nd2 Nef6 17. Nc4 Bc7 18. Nf4 Bxf4 19. exf4 Qc7 20. Ne3 Qd6 21. Rd2 {½-½ Nihal,S (2620)-Tang,A (2538) Chess.com U20 Speed blitz 2020 (1.9)}) 15... Ne4 {[%emt 0:00:14]} 16. Rfd1 {[%emt 0:00:14]} Ndf6 {[%emt 0:00:07][%cal Oe4f2]} 17. Nd2 {[%emt 0:01:05] [#]} (17. h3 $11 {remains equal.}) 17... Nxf2 $1 $17 {[%emt 0:00:34][%mdl 576] Decoy} 18. Kxf2 {[%emt 0:00:05] Hoping for Kg1.} Ng4+ {[%emt 0:00:05]} 19. Kg1 {[%emt 0:00:04]} Nxe3 {[%emt 0:00:22]} 20. Bh3 {[%emt 0:01:21]} Nxd1 $19 {[%emt 0:00:24]} 21. Rxd1 {[%emt 0:00:03] [#]} c4 {[%emt 0:00:53]} 22. Qf3 {[%emt 0:00:31]} (22. bxc4 $2 Bc5+ 23. Nd4 dxc4 24. Qxc4 Qb6 25. Bxc8 Rxc8 $19) (22. Qc3 $17 Qb6+ 23. Kf1) 22... Bc5+ {[%emt 0:01:12]} 23. Kf1 {[%emt 0:00:17]} (23. Nd4 $17 Rc7 24. Nf1) 23... Rc6 {[%emt 0:01:30]} 24. Nxc4 {[%emt 0:00:28]} (24. bxc4 $2 Rb6 25. Ba1 (25. Nb3 $2 dxc4 {[%mdl 64] Discovered Attack} 26. Rxd8 Rxd8 $19) 25... dxc4 $19) 24... Rh6 {[%emt 0:01:11]} (24... d4 $1 $17 {aiming for ...Rf6.} 25. Nf4 (25. Nxd4 $2 Rf6 $19 {[%mdl 64] Pin}) 25... Rc7) 25. Nf4 $2 {[%emt 0:00:54] [#]} (25. Ne5 $1 $15 Qe7 26. Bd7) 25... Rxh3 $1 {[%emt 0:00:32][%mdl 512]} 26. Qg4 $17 {[%emt 0:00:23][%csl Gb2][%cal Rg4g7] [#]} (26. Nxh3 $2 Qc8 27. Nf4 (27. Ng5 $2 f6 $19) 27... dxc4 $19) 26... f6 $1 {[%emt 0:01:02]} 27. Qxh3 {[%emt 0:01:36] And now Bc3 would win.} (27. Nxh3 $2 Bc8 28. Qh4 (28. Qh5 $2 g6 $19) 28... Qe7 $19) 27... Qe7 {[%emt 0:00:04]} 28. Na5 {[%emt 0:00:05][%cal Oa5b7]} (28. b4 $2 Qe4 29. Qg2 Qxc4+ 30. Nd3 Ba7 $19) 28... Ba8 {[%emt 0:00:03]} (28... Qe3 29. Qg2 (29. Nxb7 $2 Qg1#) 29... Ba8 30. Bc1 $16 (30. Nxd5 Qe6 $17)) 29. Qg2 {[%emt 0:00:39] [#]} (29. Nxd5 $2 Qe2#) 29... Bb4 {[%emt 0:00:09]} (29... Bb6 $1 $17) 30. Nxd5 $11 {[%emt 0:00:10]} Qe6 {[%emt 0:00:11] ...Qg4 is the strong threat.} (30... Bxa5 $2 31. Nxe7+ Kf8 32. Nc6 $18) 31. Nc4 {[%emt 0:00:22] Threatens to win with Nce3.} Qf5+ {[%emt 0:00:16][%mdl 1024] Black has compensation.} 32. Qf2 $1 {[%emt 0:01:06]} (32. Kg1 $2 Bc5+ 33. Kh1 Re1+ 34. Rxe1 Bxd5 $19) 32... Qh3+ {[%emt 0:00:04]} 33. Qg2 $1 {[%emt 0:00:39]} (33. Kg1 $2 Bxd5 34. Rxd5 Re1+ $19) 33... Qf5+ {[%emt 0:00:04]} (33... Qg4 $5 34. Nce3 $8 Rxe3 35. Nxf6+ gxf6 36. Qxa8+ Kg7 $11) 34. Qf2 $1 {[%emt 0:00:04]} ({Wrong is} 34. Kg1 $2 Bc5+ 35. Kh1 Re1+ 36. Rxe1 Bxd5 $19) 34... Qh3+ $40 {[%emt 0:00:04][%mdl 128] White needs to defend precisely.} 35. Kg1 $2 {[%emt 0:00:04][%mdl 8192]} (35. Qg2 $1 $11 {and White has nothing to worry.} Qg4 36. Nce3 Rxe3 37. Nxf6+ gxf6 38. Qxa8+ Kg7 39. Qd5 (39. Rd4 {leads to mate.} Qe2+ 40. Kg1 Qe1+ 41. Kg2 Re2+ 42. Kh3 Qf1+)) 35... Bxd5 $19 {[%emt 0:00:04] A strong pair of Bishops.} 36. Bd4 {[%emt 0:00:23] Against Bc5} (36. Rxd5 Re1+ 37. Qxe1 Bxe1 38. Rd8+ Kf7 39. Bd4) 36... Qg4 {[%emt 0:00:09]} 37. Rc1 {[%emt 0:02:11] White is weak on the light squares} Qe4 {[%emt 0:00:23][%csl Gd5][%cal Re4h1]} 38. Kf1 {[%emt 0:00:07]} Qh1+ {[%emt 0:00:11]} (38... Qd3+ $142 39. Kg1 Re2 40. Nb6 Rxf2 41. Bxf2 Bb7 42. Rc8+ Bxc8 43. Nxc8 Qd1+ 44. Kg2 Qd5+ 45. Kf1 Qf3 46. Kg1 Qd1+ 47. Kg2 Qc2 48. Kg1 Qc1+ 49. Kg2 Qxc8 50. a3 Qb7+ 51. Kg1 Bxa3 52. g4 Qxb3 53. h4 Qd1+ 54. Kg2 Qxg4+ 55. Kf1 Bb4 56. Ba7 f5 57. Kf2 f4 58. Bd4 Bd2 59. Bc3 Bxc3 60. h5 Bd2 61. h6 f3 62. hxg7 Qg2#) 39. Qg1 {[%emt 0:00:04]} Qf3+ {[%emt 0:00:06]} 40. Qf2 {[%emt 0:00:04]} Qh1+ {[%emt 0:00:19]} (40... Qd3+ $142 41. Kg1 Re2 42. Qxe2 Qxe2 43. Ne3 Bb7 44. Rd1 Be1 45. Rxe1 Qxe1+ 46. Nf1 a5 47. g4 Ba6 48. Kg2 Qxf1+ 49. Kg3 g5 50. h4 Bb7 51. hxg5 fxg5 52. Kh2 Qg2#) 41. Qg1 {[%emt 0:00:04]} Qf3+ {[%emt 0:00:03]} (41... Bxc4+ $142 42. bxc4 Qf3+ 43. Qf2 Qd3+ 44. Kg1 Bd2) 42. Qf2 {[%emt 0:00:04]} Qh1+ $2 {[%emt 0:00:04] A brilliant game!   Weighted Error Value: White=0.60/Black=0.48} (42... Qd3+ $19 43. Kg1 Re2) 1/2-1/2